[Event "*** Titled Tuesday 3|2 Blitz"]
[Site "Chess.com"]
[Date "2015.06.02"]
[Round "1"]
[White "JustaTrickstar"]
[Black "alexsuper1987"]
[Result "1-0"]
[WhiteElo "2445"]
[BlackElo "2071"]
[TimeControl "180+2"]
[EndTime "11:09:10 PDT"]
[Termination "JustaTrickstar won by resignation"]

1. d4 {[%clk 0:02:59]} 1... Nf6 {[%clk 0:03:00.3]} 2. c4 {[%clk 0:02:59.5]} 2...
c5 {[%clk 0:03:00.3]} 3. d5 {[%clk 0:03:00.1]} 3... e6 {[%clk 0:03:01.9]} 4. Nc3
{[%clk 0:03:00.6]} 4... exd5 {[%clk 0:03:03.2]} 5. cxd5 {[%clk 0:03:02.5]} 5...
d6 {[%clk 0:03:04.8]} 6. Nf3 {[%clk 0:03:03.9]} 6... g6 {[%clk 0:03:06]} 7. Nd2
{[%clk 0:03:05.2]} 7... Nbd7 {[%clk 0:03:03.4]} 8. e4 {[%clk 0:03:06.1]} 8...
Bg7 {[%clk 0:02:59.8]} 9. Be2 {[%clk 0:03:03.9]} 9... O-O {[%clk 0:02:54.1]} 10.
O-O {[%clk 0:03:02.8]} 10... a6 {[%clk 0:02:54]} 11. a4 {[%clk 0:03:03.9]} 11...
Rb8 {[%clk 0:02:48.5]} 12. Re1 {[%clk 0:02:47.4]} 12... Qc7 {[%clk 0:02:03.2]}
13. Qc2 {[%clk 0:02:38.6]} 13... Re8 {[%clk 0:01:56]} 14. Nf1 {[%clk 0:02:20]}
14... c4 {[%clk 0:01:16.8]} 15. a5 {[%clk 0:01:56]} 15... b5 {[%clk 0:01:11.6]}
16. axb6 {[%clk 0:01:56.8]} 16... Nxb6 {[%clk 0:01:12.9]} 17. Be3 {[%clk
0:01:56.2]} 17... Ng4 {[%clk 0:01:00.8]} 18. Bxg4 {[%clk 0:01:56.8]} 18... Bxg4
{[%clk 0:01:00.4]} 19. Rxa6 {[%clk 0:01:57.9]} 19... Nd7 {[%clk 0:00:53.7]} 20.
Rc6 {[%clk 0:01:58]} 20... Qb7 {[%clk 0:00:47.8]} 21. Rxc4 {[%clk 0:01:56.9]}
21... Qxb2 {[%clk 0:00:44.1]} 22. Qxb2 {[%clk 0:01:49.3]} 22... Rxb2 {[%clk
0:00:46]} 23. Na4 {[%clk 0:01:50.1]} 23... Ra2 {[%clk 0:00:39.9]} 24. f4 {[%clk
0:01:05.5]} 24... Nf6 {[%clk 0:00:33.4]} 25. Nc3 {[%clk 0:00:59.3]} 25... Rc2
{[%clk 0:00:31.7]} 26. Rc1 {[%clk 0:01:00.4]} 26... Rxc1 {[%clk 0:00:17.9]} 27.
Bxc1 {[%clk 0:01:02.3]} 27... h5 {[%clk 0:00:11.7]} 28. h3 {[%clk 0:00:56.2]}
28... Bc8 {[%clk 0:00:09.5]} 29. Nd2 {[%clk 0:00:51.7]} 29... Ba6 {[%clk
0:00:09.9]} 30. Rc6 {[%clk 0:00:52.9]} 30... Bd3 {[%clk 0:00:10.5]} 31. e5
{[%clk 0:00:23.7]} 31... dxe5 {[%clk 0:00:08.8]} 32. fxe5 {[%clk 0:00:25.4]}
32... Rxe5 {[%clk 0:00:09.8]} 33. Nf3 {[%clk 0:00:27.1]} 33... Re8 {[%clk
0:00:06.8]} 34. Bg5 {[%clk 0:00:28.1]} 34... Ne4 {[%clk 0:00:06.7]} 35. d6
{[%clk 0:00:17.7]} 35... f6 {[%clk 0:00:04.3]} 36. Bf4 {[%clk 0:00:08.3]} 36...
Nxc3 {[%clk 0:00:03.9]} 37. Rxc3 {[%clk 0:00:10.2]} 37... Be4 {[%clk 0:00:04.1]}
38. d7 {[%clk 0:00:10.7]} 38... Rd8 {[%clk 0:00:05.3]} 39. Rc8 {[%clk
0:00:11.8]} 39... Rxc8 {[%clk 0:00:02.2]} 40. dxc8=Q+ {[%clk 0:00:12.9]} 40...
Kh7 {[%clk 0:00:02.9]} 41. Nd2 {[%clk 0:00:14.2]} 41... Bf3 {[%clk 0:00:04.8]}
42. gxf3 {[%clk 0:00:14.8]} 42... g5 {[%clk 0:00:06.7]} 1-0

[Event "*** Titled Tuesday 3|2 Blitz"]
[Site "Chess.com"]
[Date "2015.06.02"]
[Round "1"]
[White "Vandros57"]
[Black "HZMC92"]
[Result "0-1"]
[WhiteElo "1861"]
[BlackElo "2314"]
[TimeControl "180+2"]
[EndTime "11:09:12 PDT"]
[Termination "HZMC92 won on time"]

1. d4 {[%clk 0:02:54.1]} 1... d5 {[%clk 0:03:00.7]} 2. c4 {[%clk 0:02:53.7]}
2... e6 {[%clk 0:03:01.6]} 3. Nc3 {[%clk 0:02:53.5]} 3... c6 {[%clk 0:03:02.9]}
4. e3 {[%clk 0:02:52.6]} 4... f5 {[%clk 0:03:03.4]} 5. Nh3 {[%clk 0:02:43.1]}
5... Bd6 {[%clk 0:03:03.1]} 6. Be2 {[%clk 0:02:40.5]} 6... Nh6 {[%clk 0:03:03]}
7. Nf4 {[%clk 0:02:39]} 7... O-O {[%clk 0:03:02.6]} 8. O-O {[%clk 0:02:32.3]}
8... Qe7 {[%clk 0:03:02.8]} 9. c5 {[%clk 0:02:26.2]} 9... Bc7 {[%clk 0:03:03.4]}
10. Nd3 {[%clk 0:02:25.2]} 10... Nd7 {[%clk 0:03:03.6]} 11. f4 {[%clk
0:02:24.8]} 11... Kh8 {[%clk 0:02:57.4]} 12. Bd2 {[%clk 0:02:23.3]} 12... Nf6
{[%clk 0:02:56.1]} 13. Be1 {[%clk 0:02:20.7]} 13... Ne4 {[%clk 0:02:53.9]} 14.
Nxe4 {[%clk 0:02:17.7]} 14... fxe4 {[%clk 0:02:55.1]} 15. Ne5 {[%clk 0:02:15.8]}
15... Nf5 {[%clk 0:02:54.4]} 16. Qd2 {[%clk 0:02:11.4]} 16... Bd7 {[%clk
0:02:54.2]} 17. b4 {[%clk 0:02:09.6]} 17... g5 {[%clk 0:02:49.4]} 18. g3 {[%clk
0:01:59.3]} 18... gxf4 {[%clk 0:02:50]} 19. gxf4 {[%clk 0:01:50.8]} 19... Rg8+
{[%clk 0:02:49.5]} 20. Kh1 {[%clk 0:01:49.8]} 20... Bxe5 {[%clk 0:02:41.6]} 21.
dxe5 {[%clk 0:01:42.6]} 21... Qg7 {[%clk 0:02:26]} 22. Bd1 {[%clk 0:01:34.2]}
22... Nxe3 {[%clk 0:02:17.3]} 23. Qe2 {[%clk 0:01:07.4]} 23... Nxf1 {[%clk
0:02:17.9]} 24. Qxf1 {[%clk 0:01:07.2]} 24... Raf8 {[%clk 0:02:18.8]} 25. Bg3
{[%clk 0:01:00.3]} 25... Qxe5 {[%clk 0:02:14.7]} 26. Be2 {[%clk 0:00:50]} 26...
Qf6 {[%clk 0:02:08.2]} 27. Rd1 {[%clk 0:00:46.5]} 27... e5 {[%clk 0:02:07.1]}
28. fxe5 {[%clk 0:00:42.4]} 28... Qxf1+ {[%clk 0:02:06.1]} 29. Bxf1 {[%clk
0:00:38.1]} 29... Bg4 {[%clk 0:02:03.7]} 30. Re1 {[%clk 0:00:35.2]} 30... h5
{[%clk 0:02:00.7]} 31. Bg2 {[%clk 0:00:20.6]} 31... Bf3 {[%clk 0:01:53.5]} 32.
Bxf3 {[%clk 0:00:16]} 32... Rxf3 {[%clk 0:01:53.6]} 33. e6 {[%clk 0:00:10.8]}
33... Rfxg3 {[%clk 0:01:41.2]} 34. hxg3 {[%clk 0:00:10.9]} 34... Re8 {[%clk
0:01:41.5]} 35. Kg2 {[%clk 0:00:09.3]} 35... Rxe6 {[%clk 0:01:42.4]} 36. Rh1
{[%clk 0:00:08.2]} 36... Re5 {[%clk 0:01:41.6]} 37. g4 {[%clk 0:00:07.9]} 37...
Kg7 {[%clk 0:01:43]} 38. gxh5 {[%clk 0:00:08]} 38... Kh6 {[%clk 0:01:43.4]} 39.
Kf2 {[%clk 0:00:08]} 39... Rxh5 {[%clk 0:01:43.6]} 40. Rg1 {[%clk 0:00:08.5]}
40... Rg5 {[%clk 0:01:44.8]} 41. Rh1+ {[%clk 0:00:08.5]} 41... Kg7 {[%clk
0:01:46.1]} 42. Ke3 {[%clk 0:00:09.3]} 42... Rg3+ {[%clk 0:01:43.4]} 43. Kd4
{[%clk 0:00:07.9]} 43... Rd3+ {[%clk 0:01:44]} 44. Ke5 {[%clk 0:00:08.2]} 44...
Rg3 {[%clk 0:01:40.4]} 45. Rf1 {[%clk 0:00:06.6]} 45... e3 {[%clk 0:01:39.1]}
46. Kd4 {[%clk 0:00:06.8]} 46... Kg6 {[%clk 0:01:38.5]} 47. a4 {[%clk
0:00:06.8]} 47... a6 {[%clk 0:01:36.3]} 48. b5 {[%clk 0:00:06]} 48... axb5
{[%clk 0:01:36.4]} 49. axb5 {[%clk 0:00:06.4]} 49... cxb5 {[%clk 0:01:37.4]} 50.
Kxd5 {[%clk 0:00:06.6]} 50... e2 {[%clk 0:01:37.3]} 51. Re1 {[%clk 0:00:06.8]}
51... Re3 {[%clk 0:01:36.1]} 52. Kd4 {[%clk 0:00:04.1]} 52... Re8 {[%clk
0:01:36.5]} 53. Kd3 {[%clk 0:00:03.1]} 53... Kf5 {[%clk 0:01:31.4]} 54. Kd2
{[%clk 0:00:02.2]} 54... Re4 {[%clk 0:01:28.1]} 55. Kc3 {[%clk 0:00:02.6]} 55...
Ke5 {[%clk 0:01:28]} 56. Kd3 {[%clk 0:00:02.4]} 56... Kd5 {[%clk 0:01:28]} 0-1

[Event "*** Titled Tuesday 3|2 Blitz"]
[Site "Chess.com"]
[Date "2015.06.02"]
[Round "1"]
[White "AungTZ"]
[Black "GMHess"]
[Result "0-1"]
[WhiteElo "2122"]
[BlackElo "2482"]
[TimeControl "180+2"]
[EndTime "11:09:24 PDT"]
[Termination "GMHess won by resignation"]

1. e4 {[%clk 0:02:58.4]} 1... g6 {[%clk 0:03:01.9]} 2. d4 {[%clk 0:02:58.5]}
2... Bg7 {[%clk 0:03:03.4]} 3. Nc3 {[%clk 0:02:58.7]} 3... d6 {[%clk 0:03:04.5]}
4. Be2 {[%clk 0:02:58.9]} 4... Nf6 {[%clk 0:03:03]} 5. Be3 {[%clk 0:02:58]} 5...
O-O {[%clk 0:03:03.9]} 6. h4 {[%clk 0:02:58.4]} 6... h5 {[%clk 0:03:00.7]} 7.
Nh3 {[%clk 0:02:58.5]} 7... e5 {[%clk 0:02:57.9]} 8. d5 {[%clk 0:02:58]} 8...
Ng4 {[%clk 0:02:49.5]} 9. Bg5 {[%clk 0:02:54.7]} 9... f6 {[%clk 0:02:50]} 10.
Bd2 {[%clk 0:02:54.6]} 10... c6 {[%clk 0:02:45.7]} 11. f3 {[%clk 0:02:45.6]}
11... Nh6 {[%clk 0:02:46.6]} 12. Be3 {[%clk 0:02:44.5]} 12... f5 {[%clk
0:02:44.6]} 13. Bg5 {[%clk 0:02:42.5]} 13... Qb6 {[%clk 0:02:40]} 14. Qd2 {[%clk
0:02:42.2]} 14... Nf7 {[%clk 0:02:39.2]} 15. O-O-O {[%clk 0:02:37.5]} 15... f4
{[%clk 0:02:36]} 16. Rhg1 {[%clk 0:02:32]} 16... Re8 {[%clk 0:02:21.3]} 17. g3
{[%clk 0:02:27.3]} 17... Bxh3 {[%clk 0:02:21.3]} 18. gxf4 {[%clk 0:02:27.2]}
18... Nxg5 {[%clk 0:02:14.7]} 19. Rxg5 {[%clk 0:02:23.2]} 19... Kh7 {[%clk
0:02:09]} 20. Kb1 {[%clk 0:02:16.9]} 20... Bh6 {[%clk 0:02:03.9]} 21. Rgg1
{[%clk 0:02:10.4]} 21... Bxf4 {[%clk 0:01:54.8]} 22. Qe1 {[%clk 0:02:09.7]}
22... c5 {[%clk 0:01:34.7]} 23. Bf1 {[%clk 0:02:00.7]} 23... Bxf1 {[%clk
0:01:29]} 24. Qxf1 {[%clk 0:02:00.9]} 24... Nd7 {[%clk 0:01:30.5]} 25. Qh3
{[%clk 0:02:01]} 25... Nf8 {[%clk 0:01:29.1]} 26. Ne2 {[%clk 0:02:00.1]} 26...
Bh6 {[%clk 0:01:24]} 27. Rg2 {[%clk 0:01:59]} 27... Qd8 {[%clk 0:01:21.9]} 28.
Rdg1 {[%clk 0:01:58.1]} 28... Be3 {[%clk 0:01:19.9]} 29. Rf1 {[%clk 0:01:56.9]}
29... Qf6 {[%clk 0:01:20.6]} 30. f4 {[%clk 0:01:46.9]} 30... Bxf4 {[%clk
0:01:21.4]} 31. Ng1 {[%clk 0:01:44.4]} 31... Re7 {[%clk 0:01:11.8]} 32. Nf3
{[%clk 0:01:39.1]} 32... Qg7 {[%clk 0:00:54.2]} 33. a3 {[%clk 0:01:34.1]} 33...
Rf7 {[%clk 0:00:50.1]} 34. Ng1 {[%clk 0:01:33.3]} 34... Bh6 {[%clk 0:00:47.1]}
35. Rgf2 {[%clk 0:01:33.5]} 35... Rxf2 {[%clk 0:00:42.9]} 36. Rxf2 {[%clk
0:01:34]} 36... Nd7 {[%clk 0:00:43.5]} 37. Qb3 {[%clk 0:01:31]} 37... Nb6 {[%clk
0:00:37.3]} 38. Nh3 {[%clk 0:01:30.3]} 38... Rf8 {[%clk 0:00:37]} 39. Rxf8
{[%clk 0:01:28.2]} 39... Qxf8 {[%clk 0:00:38.9]} 40. a4 {[%clk 0:01:29.9]} 40...
Qf1+ {[%clk 0:00:38.8]} 41. Ka2 {[%clk 0:01:29.4]} 41... Qc4 {[%clk 0:00:34.5]}
42. a5 {[%clk 0:01:26.5]} 42... Qxb3+ {[%clk 0:00:33.7]} 43. Kxb3 {[%clk
0:01:27.2]} 43... Nd7 {[%clk 0:00:33.8]} 44. Ka4 {[%clk 0:01:29.1]} 44... Nf6
{[%clk 0:00:32.9]} 45. Kb5 {[%clk 0:01:28.4]} 45... Nxe4 {[%clk 0:00:32.7]} 46.
a6 {[%clk 0:01:28.8]} 46... bxa6+ {[%clk 0:00:33.5]} 47. Kc6 {[%clk 0:01:29.1]}
47... a5 {[%clk 0:00:32]} 48. b3 {[%clk 0:01:29.3]} 48... Bf8 {[%clk 0:00:27.1]}
49. Kd7 {[%clk 0:01:24.5]} 49... Bh6 {[%clk 0:00:26.4]} 50. Kc6 {[%clk
0:01:23.9]} 50... Be3 {[%clk 0:00:27.5]} 51. Kd7 {[%clk 0:01:19.7]} 51... g5
{[%clk 0:00:27.7]} 52. hxg5 {[%clk 0:01:18.4]} 52... Nxg5 {[%clk 0:00:29.6]} 53.
Nxg5+ {[%clk 0:01:17]} 53... Bxg5 {[%clk 0:00:31.5]} 54. Kxd6 {[%clk 0:01:18.9]}
54... h4 {[%clk 0:00:33]} 55. Kxe5 {[%clk 0:01:19.2]} 55... h3 {[%clk
0:00:34.9]} 56. Kf5 {[%clk 0:01:20.7]} 0-1

[Event "*** Titled Tuesday 3|2 Blitz"]
[Site "Chess.com"]
[Date "2015.06.02"]
[Round "1"]
[White "NFork"]
[Black "Lupul_Cenusiu"]
[Result "0-1"]
[WhiteElo "2076"]
[BlackElo "2452"]
[TimeControl "180+2"]
[EndTime "11:09:26 PDT"]
[Termination "Lupul_Cenusiu won by resignation"]

1. e4 {[%clk 0:02:57]} 1... c5 {[%clk 0:02:58.9]} 2. c3 {[%clk 0:02:57.4]} 2...
Nf6 {[%clk 0:02:54.5]} 3. e5 {[%clk 0:02:57.7]} 3... Nd5 {[%clk 0:02:55.5]} 4.
Nf3 {[%clk 0:02:58.9]} 4... d6 {[%clk 0:02:55.7]} 5. d4 {[%clk 0:02:52.7]} 5...
cxd4 {[%clk 0:02:55.9]} 6. cxd4 {[%clk 0:02:36.4]} 6... Nc6 {[%clk 0:02:55.8]}
7. exd6 {[%clk 0:02:28.5]} 7... e6 {[%clk 0:02:54.4]} 8. Bc4 {[%clk 0:02:20]}
8... Bxd6 {[%clk 0:02:54.3]} 9. O-O {[%clk 0:02:20.4]} 9... O-O {[%clk
0:02:54.6]} 10. Nc3 {[%clk 0:02:20.9]} 10... Nxc3 {[%clk 0:02:54.1]} 11. bxc3
{[%clk 0:02:21.4]} 11... b6 {[%clk 0:02:52.4]} 12. Bd3 {[%clk 0:02:13]} 12...
Be7 {[%clk 0:02:49.5]} 13. Qc2 {[%clk 0:01:49.4]} 13... g6 {[%clk 0:02:48.9]}
14. Bh6 {[%clk 0:01:44.5]} 14... Re8 {[%clk 0:02:49.8]} 15. Qd2 {[%clk
0:01:36.2]} 15... Bb7 {[%clk 0:02:49]} 16. Qf4 {[%clk 0:01:37]} 16... Qd6 {[%clk
0:02:45.3]} 17. Qe3 {[%clk 0:01:12.5]} 17... Rac8 {[%clk 0:02:41.6]} 18. Bf4
{[%clk 0:01:12.4]} 18... Qd5 {[%clk 0:02:37.1]} 19. c4 {[%clk 0:01:08.2]} 19...
Qd7 {[%clk 0:02:34.4]} 20. Rad1 {[%clk 0:01:02.1]} 20... Rcd8 {[%clk 0:02:35.2]}
21. Bb1 {[%clk 0:00:46.9]} 21... Qc8 {[%clk 0:02:35.9]} 22. Ne5 {[%clk
0:00:28.2]} 22... Nxe5 {[%clk 0:02:26.9]} 23. Bxe5 {[%clk 0:00:29]} 23... Qxc4
{[%clk 0:02:20.1]} 24. Qh6 {[%clk 0:00:29.7]} 24... Bf8 {[%clk 0:02:21.1]} 25.
Qh4 {[%clk 0:00:28.4]} 25... Bg7 {[%clk 0:02:18.6]} 26. Bxg7 {[%clk 0:00:28.7]}
26... Kxg7 {[%clk 0:02:19.6]} 27. Qf4 {[%clk 0:00:25.3]} 27... Qd5 {[%clk
0:02:18.3]} 28. f3 {[%clk 0:00:24.6]} 28... e5 {[%clk 0:02:11.4]} 29. Qh4 {[%clk
0:00:20.3]} 29... exd4 {[%clk 0:02:11.4]} 30. Be4 {[%clk 0:00:21.2]} 30... Qd7
{[%clk 0:02:12.4]} 31. Bxb7 {[%clk 0:00:21.5]} 31... Qxb7 {[%clk 0:02:13.6]} 32.
Rxd4 {[%clk 0:00:22.6]} 32... Rxd4 {[%clk 0:02:12.5]} 33. Qxd4+ {[%clk
0:00:24.5]} 33... Kg8 {[%clk 0:02:13.9]} 34. h4 {[%clk 0:00:25.5]} 34... Qe7
{[%clk 0:02:11.2]} 35. Rd1 {[%clk 0:00:26.1]} 35... h5 {[%clk 0:02:08.4]} 36.
Kh2 {[%clk 0:00:25.6]} 36... Qe5+ {[%clk 0:02:08.4]} 37. Qxe5 {[%clk 0:00:26.9]}
37... Rxe5 {[%clk 0:02:09.6]} 38. Rd4 {[%clk 0:00:26.7]} 38... Rc5 {[%clk
0:02:06.1]} 39. a4 {[%clk 0:00:27.5]} 39... Kf8 {[%clk 0:02:05.1]} 40. g4 {[%clk
0:00:28.4]} 40... Ke7 {[%clk 0:02:04.7]} 41. gxh5 {[%clk 0:00:29.6]} 41... Rxh5
{[%clk 0:02:05.4]} 42. Kg3 {[%clk 0:00:30.4]} 42... Ke6 {[%clk 0:02:06.5]} 43.
Re4+ {[%clk 0:00:30.4]} 43... Re5 {[%clk 0:02:07.6]} 44. Rf4 {[%clk 0:00:28.6]}
44... a6 {[%clk 0:02:06.9]} 45. Rb4 {[%clk 0:00:28.7]} 45... b5 {[%clk
0:02:08.2]} 46. axb5 {[%clk 0:00:29.9]} 46... axb5 {[%clk 0:02:09.1]} 47. f4
{[%clk 0:00:30.3]} 47... Rf5 {[%clk 0:02:09.5]} 48. Kg4 {[%clk 0:00:30.9]} 48...
Kd6 {[%clk 0:02:05.8]} 49. Rb1 {[%clk 0:00:29.6]} 49... Kc5 {[%clk 0:02:06.9]}
50. Rc1+ {[%clk 0:00:30.6]} 50... Kb4 {[%clk 0:02:05.8]} 51. Re1 {[%clk
0:00:20.7]} 51... Ka4 {[%clk 0:02:04]} 52. Re7 {[%clk 0:00:13.9]} 52... b4
{[%clk 0:02:05.1]} 53. h5 {[%clk 0:00:15.3]} 53... Rxh5 {[%clk 0:02:01.8]} 54.
Rxf7 {[%clk 0:00:16.2]} 54... b3 {[%clk 0:02:02.4]} 55. Ra7+ {[%clk 0:00:15.1]}
55... Kb4 {[%clk 0:02:02.4]} 56. Rb7+ {[%clk 0:00:10.5]} 56... Rb5 {[%clk
0:01:58.6]} 0-1

[Event "*** Titled Tuesday 3|2 Blitz"]
[Site "Chess.com"]
[Date "2015.06.02"]
[Round "1"]
[White "GregShahade"]
[Black "Fh2411"]
[Result "0-1"]
[WhiteElo "2382"]
[BlackElo "2144"]
[TimeControl "180+2"]
[EndTime "11:09:43 PDT"]
[Termination "Fh2411 won by resignation"]

1. c4 {[%clk 0:02:51.1]} 1... c6 {[%clk 0:03:00]} 2. e4 {[%clk 0:02:49.1]} 2...
d5 {[%clk 0:02:58.9]} 3. exd5 {[%clk 0:02:49.2]} 3... cxd5 {[%clk 0:02:59.8]} 4.
d4 {[%clk 0:02:50.3]} 4... Nf6 {[%clk 0:03:00.4]} 5. Nc3 {[%clk 0:02:50.6]} 5...
Nc6 {[%clk 0:02:56.7]} 6. Bg5 {[%clk 0:02:50.2]} 6... Be6 {[%clk 0:02:49.5]} 7.
Bxf6 {[%clk 0:02:38.7]} 7... exf6 {[%clk 0:02:49.7]} 8. cxd5 {[%clk 0:02:37.5]}
8... Bxd5 {[%clk 0:02:49.9]} 9. Nf3 {[%clk 0:02:38.7]} 9... Bb4 {[%clk
0:02:37.6]} 10. Be2 {[%clk 0:02:37.5]} 10... O-O {[%clk 0:02:33.8]} 11. O-O
{[%clk 0:02:38.2]} 11... Bxc3 {[%clk 0:02:32.2]} 12. bxc3 {[%clk 0:02:38.5]}
12... Na5 {[%clk 0:02:33.2]} 13. Nd2 {[%clk 0:01:55.6]} 13... Rc8 {[%clk
0:02:32.3]} 14. Rc1 {[%clk 0:01:49]} 14... Bxa2 {[%clk 0:01:46.2]} 15. Qa4
{[%clk 0:01:49.1]} 15... Be6 {[%clk 0:01:40.5]} 16. c4 {[%clk 0:01:38.3]} 16...
b6 {[%clk 0:01:24.2]} 17. d5 {[%clk 0:01:36.6]} 17... Bd7 {[%clk 0:01:21.1]} 18.
Qa2 {[%clk 0:01:35]} 18... Re8 {[%clk 0:01:19.2]} 19. Bd3 {[%clk 0:01:33.7]}
19... f5 {[%clk 0:01:07.6]} 20. Nf3 {[%clk 0:01:17.7]} 20... g6 {[%clk
0:01:00.5]} 21. h4 {[%clk 0:01:14.8]} 21... Rc5 {[%clk 0:00:59.1]} 22. h5 {[%clk
0:01:14]} 22... Qf6 {[%clk 0:00:56.3]} 23. Rfe1 {[%clk 0:01:09.7]} 23... Rec8
{[%clk 0:00:56.2]} 24. Ne5 {[%clk 0:01:07]} 24... Be8 {[%clk 0:00:54.7]} 25. Qe2
{[%clk 0:00:55.1]} 25... Nb7 {[%clk 0:00:36.2]} 26. Qf3 {[%clk 0:00:47]} 26...
Qg5 {[%clk 0:00:32.6]} 27. hxg6 {[%clk 0:00:44]} 27... hxg6 {[%clk 0:00:32.8]}
28. Ra1 {[%clk 0:00:44.3]} 28... Na5 {[%clk 0:00:31]} 29. Qe2 {[%clk 0:00:44.8]}
29... Qf6 {[%clk 0:00:27.5]} 30. Rac1 {[%clk 0:00:42.8]} 30... Kg7 {[%clk
0:00:21.4]} 31. f4 {[%clk 0:00:40.2]} 31... Nb7 {[%clk 0:00:19.2]} 32. Ra1
{[%clk 0:00:40.3]} 32... Ra5 {[%clk 0:00:19.3]} 33. Rxa5 {[%clk 0:00:40.7]}
33... Nxa5 {[%clk 0:00:20.5]} 34. Rd1 {[%clk 0:00:32.1]} 34... Qd6 {[%clk
0:00:21.1]} 35. Qb2 {[%clk 0:00:32.2]} 35... Qc5+ {[%clk 0:00:22.2]} 36. Kf1
{[%clk 0:00:31.1]} 36... Kg8 {[%clk 0:00:23.7]} 37. g4 {[%clk 0:00:30.4]} 37...
fxg4 {[%clk 0:00:23.2]} 38. Nxg4 {[%clk 0:00:30.2]} 38... Nxc4 {[%clk
0:00:20.2]} 39. Nf6+ {[%clk 0:00:22.5]} 39... Kf8 {[%clk 0:00:21.3]} 40. Nh7+
{[%clk 0:00:17.8]} 40... Kg8 {[%clk 0:00:22.3]} 41. Nf6+ {[%clk 0:00:18.7]}
41... Kh8 {[%clk 0:00:20]} 42. Qh2+ {[%clk 0:00:11.1]} 42... Kg7 {[%clk
0:00:21.1]} 43. Nh5+ {[%clk 0:00:12.5]} 43... gxh5 {[%clk 0:00:20.2]} 44. Qxh5
{[%clk 0:00:12.3]} 44... Ne3+ {[%clk 0:00:20]} 45. Ke2 {[%clk 0:00:13.6]} 45...
Nxd1 {[%clk 0:00:19.6]} 46. Qh7+ {[%clk 0:00:13.5]} 46... Kf8 {[%clk 0:00:19.7]}
47. Qh8+ {[%clk 0:00:14.7]} 47... Ke7 {[%clk 0:00:21]} 48. Qe5+ {[%clk
0:00:16.3]} 48... Kd8 {[%clk 0:00:21.7]} 49. Qf6+ {[%clk 0:00:15.2]} 49... Qe7+
{[%clk 0:00:22.6]} 50. Qxe7+ {[%clk 0:00:15.7]} 50... Kxe7 {[%clk 0:00:24.5]}
51. Kxd1 {[%clk 0:00:17.5]} 51... Kd6 {[%clk 0:00:26.3]} 52. Be4 {[%clk
0:00:17.4]} 52... Rc5 {[%clk 0:00:28.2]} 53. Kd2 {[%clk 0:00:17.3]} 53... Bd7
{[%clk 0:00:30.1]} 54. Kd3 {[%clk 0:00:18.3]} 54... Rxd5+ {[%clk 0:00:32]} 55.
Bxd5 {[%clk 0:00:19.3]} 55... Kxd5 {[%clk 0:00:33.9]} 0-1

[Event "*** Titled Tuesday 3|2 Blitz"]
[Site "Chess.com"]
[Date "2015.06.02"]
[Round "1"]
[White "Ar4uha"]
[Black "pedromartinez91"]
[Result "0-1"]
[WhiteElo "2443"]
[BlackElo "2104"]
[TimeControl "180+2"]
[EndTime "11:09:55 PDT"]
[Termination "pedromartinez91 won by resignation"]

1. e4 {[%clk 0:03:01.8]} 1... c5 {[%clk 0:02:59.6]} 2. Nf3 {[%clk 0:03:02.8]}
2... Nc6 {[%clk 0:03:00.1]} 3. Bb5 {[%clk 0:03:03.1]} 3... g6 {[%clk 0:03:00.4]}
4. O-O {[%clk 0:03:03.3]} 4... Bg7 {[%clk 0:03:00.9]} 5. c3 {[%clk 0:03:03.8]}
5... Nf6 {[%clk 0:03:01.5]} 6. d4 {[%clk 0:03:04.3]} 6... cxd4 {[%clk
0:03:00.9]} 7. cxd4 {[%clk 0:03:05.4]} 7... d5 {[%clk 0:03:02.4]} 8. Ne5 {[%clk
0:03:03.6]} 8... Bd7 {[%clk 0:02:52.4]} 9. Nxd7 {[%clk 0:03:02.6]} 9... Qxd7
{[%clk 0:02:52.9]} 10. e5 {[%clk 0:03:04]} 10... Ng8 {[%clk 0:02:43.7]} 11. Nc3
{[%clk 0:03:02.3]} 11... e6 {[%clk 0:02:43.1]} 12. Bg5 {[%clk 0:02:55.2]} 12...
h6 {[%clk 0:02:41.8]} 13. Bh4 {[%clk 0:02:55.4]} 13... Nge7 {[%clk 0:02:42]} 14.
Bxe7 {[%clk 0:02:50.8]} 14... Kxe7 {[%clk 0:02:37.9]} 15. Na4 {[%clk 0:02:44.6]}
15... Rhc8 {[%clk 0:02:24.9]} 16. Rc1 {[%clk 0:02:41.6]} 16... Kf8 {[%clk
0:02:21.7]} 17. Nc5 {[%clk 0:02:35.5]} 17... Qe7 {[%clk 0:02:22]} 18. Qa4 {[%clk
0:02:34]} 18... Nxe5 {[%clk 0:02:11.1]} 19. Nxb7 {[%clk 0:02:10.1]} 19... Qxb7
{[%clk 0:02:07.4]} 20. Ba6 {[%clk 0:02:06.6]} 20... Qxb2 {[%clk 0:01:09.7]} 21.
Rxc8+ {[%clk 0:02:06.7]} 21... Rxc8 {[%clk 0:01:09.6]} 22. Bxc8 {[%clk
0:02:08.6]} 22... Nc4 {[%clk 0:01:04.7]} 23. Qb3 {[%clk 0:00:57.1]} 23... Qxb3
{[%clk 0:00:42.9]} 24. axb3 {[%clk 0:00:57.4]} 24... Nd2 {[%clk 0:00:44.3]} 25.
Ra1 {[%clk 0:00:53.4]} 25... Bxd4 {[%clk 0:00:36.9]} 26. Ra4 {[%clk 0:00:43.7]}
26... Bb6 {[%clk 0:00:37.3]} 27. b4 {[%clk 0:00:36.9]} 27... Ne4 {[%clk
0:00:37.5]} 28. Ra2 {[%clk 0:00:37.7]} 28... Ke7 {[%clk 0:00:37.3]} 29. Ba6
{[%clk 0:00:38.7]} 29... f5 {[%clk 0:00:35.3]} 30. Kf1 {[%clk 0:00:38.1]} 30...
Nc3 {[%clk 0:00:35.9]} 31. Rc2 {[%clk 0:00:38.1]} 31... d4 {[%clk 0:00:36.7]}
32. f4 {[%clk 0:00:34.3]} 32... g5 {[%clk 0:00:36.4]} 33. fxg5 {[%clk
0:00:17.5]} 33... hxg5 {[%clk 0:00:37.8]} 34. Bc4 {[%clk 0:00:16.5]} 34... e5
{[%clk 0:00:38.3]} 35. g3 {[%clk 0:00:18]} 35... e4 {[%clk 0:00:38.4]} 36. h4
{[%clk 0:00:13.5]} 36... Kf6 {[%clk 0:00:36.9]} 37. h5 {[%clk 0:00:14.2]} 37...
Kg7 {[%clk 0:00:36.6]} 38. Be6 {[%clk 0:00:13.9]} 38... f4 {[%clk 0:00:34.8]}
39. gxf4 {[%clk 0:00:14.3]} 39... gxf4 {[%clk 0:00:35.9]} 40. Bf5 {[%clk
0:00:13.7]} 40... f3 {[%clk 0:00:34.3]} 41. Rh2 {[%clk 0:00:07.6]} 41... Kh6
{[%clk 0:00:33.6]} 42. Ke1 {[%clk 0:00:07]} 42... e3 {[%clk 0:00:33.6]} 43. Bd3
{[%clk 0:00:08.2]} 43... Nd5 {[%clk 0:00:33.2]} 44. Rh4 {[%clk 0:00:06.9]} 44...
Nxb4 {[%clk 0:00:32.9]} 45. Be4 {[%clk 0:00:06.6]} 45... d3 {[%clk 0:00:28.6]}
46. Bxf3 {[%clk 0:00:06.6]} 46... Ba5 {[%clk 0:00:28.3]} 47. Kd1 {[%clk
0:00:07]} 47... Na2 {[%clk 0:00:27.8]} 48. Rd4 {[%clk 0:00:05.2]} 48... Nc3+
{[%clk 0:00:24.5]} 49. Kc1 {[%clk 0:00:06.4]} 49... e2 {[%clk 0:00:24.9]} 50.
Rd6+ {[%clk 0:00:06.6]} 50... Kg5 {[%clk 0:00:25.2]} 51. Re6 {[%clk 0:00:05.8]}
51... Kf4 {[%clk 0:00:23.9]} 52. h6 {[%clk 0:00:05.6]} 52... Kxf3 {[%clk
0:00:21.4]} 53. h7 {[%clk 0:00:06.9]} 53... Ne4 {[%clk 0:00:22.9]} 54. h8=Q
{[%clk 0:00:04.8]} 54... e1=Q+ {[%clk 0:00:22.9]} 55. Kb2 {[%clk 0:00:06.4]} 0-1